[Event "NJSK 2026 Jeugd C"]
[Site "Helmond, Netherlands"]
[Date "2026.04.26"]
[Round "2.3"]
[White "Lenting, Roan"]
[Black "Teianu, Sabin"]
[Result "0-1"]
[TimeControl "90min/40moves + 30sec/move"]
[WhiteTitle "-"]
[BlackTitle "-"]
[WhiteFideId "1085905"]
[BlackFideId "1095846"]
[WhiteElo "1986"]
[BlackElo "2131"]

1. e4 {[%clk 01:30:57]} {[%emt 00:00:02]} e6 {[%clk 01:30:57]} {[%emt
00:00:04]} 2. d4 {[%clk 01:31:23]} {[%emt 00:00:04]} d5 {[%clk 01:31:23]}
{[%emt 00:00:04]} 3. e5 {[%clk 01:31:49]} {[%emt 00:00:04]} c5 {[%clk
01:31:49]} {[%emt 00:00:04]} 4. c3 {[%clk 01:32:15]} {[%emt 00:00:03]} Nc6
{[%clk 01:32:15]} {[%emt 00:00:05]} 5. Nf3 {[%clk 01:32:41]} {[%emt 00:00:04]}
Qb6 {[%clk 01:32:41]} {[%emt 00:00:04]} 6. a3 {[%clk 01:30:26]} {[%emt
00:02:47]} c4 {[%clk 01:33:06]} {[%emt 00:00:03]} 7. Nbd2 {[%clk 01:30:51]}
{[%emt 00:00:05]} Na5 {[%clk 01:33:32]} {[%emt 00:00:06]} 8. Be2 {[%clk
01:30:17]} {[%emt 00:01:01]} Bd7 {[%clk 01:33:55]} {[%emt 00:00:07]} 9. O-O
{[%clk 01:26:23]} {[%emt 00:04:23]} Ne7 {[%clk 01:34:19]} {[%emt 00:00:06]} 10.
Qc2 {[%clk 01:25:07]} {[%emt 00:01:47]} h6 {[%clk 01:33:56]} {[%emt 00:00:53]}
11. h4 {[%clk 01:23:09]} {[%emt 00:02:28]} Qc7 {[%clk 01:33:26]} {[%emt
00:01:01]} 12. Bd1 {[%clk 01:15:48]} {[%emt 00:07:50]} Nc8 {[%clk 01:30:53]}
{[%emt 00:03:03]} 13. b4 {[%clk 01:02:29]} {[%emt 00:13:49]} cxb3 {[%clk
01:31:14]} {[%emt 00:00:09]} 14. Nxb3 {[%clk 01:02:32]} {[%emt 00:00:27]} Ba4
{[%clk 01:20:33]} {[%emt 00:11:10]} 15. Qa2 {[%clk 00:59:18]} {[%emt 00:03:45]}
Nc4 {[%clk 01:20:49]} {[%emt 00:00:14]} 16. Nbd2 {[%clk 00:55:11]} {[%emt
00:04:36]} Bxd1 {[%clk 01:20:32]} {[%emt 00:00:47]} 17. Rxd1 {[%clk 00:53:00]}
{[%emt 00:02:41]} Nxd2 {[%clk 01:14:37]} {[%emt 00:06:26]} 18. Bxd2 {[%clk
00:52:07]} {[%emt 00:01:23]} Nb6 {[%clk 01:14:37]} {[%emt 00:00:30]} 19. Qb3
{[%clk 00:48:56]} {[%emt 00:03:41]} Be7 {[%clk 00:56:31]} {[%emt 00:18:36]} 20.
Qb5+ {[%clk 00:46:44]} {[%emt 00:02:42]} Qd7 {[%clk 00:52:09]} {[%emt
00:04:52]} 21. Rdb1 {[%clk 00:45:41]} {[%emt 00:01:33]} Qxb5 {[%clk 00:46:44]}
{[%emt 00:05:56]} 22. Rxb5 {[%clk 00:46:09]} {[%emt 00:00:02]} Kd7 {[%clk
00:47:00]} {[%emt 00:00:14]} 23. g3 {[%clk 00:39:45]} {[%emt 00:06:53]} Kc6
{[%clk 00:43:33]} {[%emt 00:03:58]} 24. Rb3 {[%clk 00:40:08]} {[%emt 00:00:06]}
Na4 {[%clk 00:38:33]} {[%emt 00:05:31]} 25. Ne1 {[%clk 00:37:58]} {[%emt
00:02:39]} b5 {[%clk 00:37:32]} {[%emt 00:01:31]} 26. Nd3 {[%clk 00:37:45]}
{[%emt 00:00:42]} a6 {[%clk 00:37:27]} {[%emt 00:00:36]} 27. Kf1 {[%clk
00:36:06]} {[%emt 00:02:08]} Rhc8 {[%clk 00:32:33]} {[%emt 00:05:25]} 28. Ke2
{[%clk 00:35:04]} {[%emt 00:01:31]} Kd7 {[%clk 00:31:53]} {[%emt 00:01:11]} 29.
Nb2 {[%clk 00:28:25]} {[%emt 00:07:09]} Nxb2 {[%emt 00:00:21]} 30. Rxb2 {[%clk
00:28:47]} Rc4 {[%clk 00:32:08]} {[%emt 00:00:32]} 31. Kd3 {[%clk 00:27:51]}
{[%emt 00:01:26]} Ra4 {[%clk 00:31:59]} {[%emt 00:00:39]} 32. Rb3 {[%clk
00:26:18]} {[%emt 00:02:03]} Rc8 {[%clk 00:32:22]} {[%emt 00:00:07]} 33. Ra2
{[%clk 00:23:04]} {[%emt 00:03:44]} Rcc4 {[%clk 00:32:19]} {[%emt 00:00:33]} 34.
Ra1 {[%clk 00:20:02]} {[%emt 00:03:33]} Kc6 {[%clk 00:32:15]} {[%emt 00:00:34]}
35. Bc1 {[%clk 00:18:05]} {[%emt 00:02:27]} Bd8 {[%clk 00:23:17]} {[%emt
00:09:28]} 36. Bd2 {[%clk 00:17:04]} {[%emt 00:01:30]} Bb6 {[%clk 00:21:20]}
{[%emt 00:02:27]} 37. Be3 {[%clk 00:16:46]} {[%emt 00:00:48]} Bd8 {[%clk
00:18:21]} {[%emt 00:03:29]} 38. h5 {[%clk 00:15:56]} {[%emt 00:01:19]} Be7
{[%clk 00:18:37]} {[%emt 00:00:15]} 39. Bc1 {[%clk 00:15:51]} {[%emt 00:00:35]}
f6 {[%clk 00:16:57]} {[%emt 00:02:10]} 40. f4 {[%clk 00:15:35]} {[%emt
00:00:46]} Kd7 {[%clk 00:16:10]} {[%emt 00:01:17]} 41. Bd2 {[%clk 00:15:24]}
{[%emt 00:00:42]} Rc8 {[%clk 00:16:04]} {[%emt 00:00:36]} 42. Rf1 {[%clk
00:12:23]} {[%emt 00:03:30]} Rf8 {[%clk 00:14:17]} {[%emt 00:02:17]} 43. exf6
{[%clk 00:11:39]} {[%emt 00:01:14]} Rxf6 {[%clk 00:11:26]} {[%emt 00:03:21]} 44.
Bc1 {[%clk 00:09:59]} {[%emt 00:02:10]} Bd6 {[%clk 00:10:08]} {[%emt 00:01:47]}
45. Rg1 {[%clk 00:08:18]} {[%emt 00:02:11]} Rf5 {[%clk 00:09:24]} {[%emt
00:01:15]} 46. g4 {[%clk 00:08:24]} {[%emt 00:00:23]} Rf8 {[%clk 00:09:47]}
{[%emt 00:00:08]} 47. Rf1 {[%clk 00:08:13]} {[%emt 00:00:41]} Rc4 {[%clk
00:08:13]} {[%emt 00:02:04]} 48. Bd2 {[%clk 00:06:26]} {[%emt 00:02:17]} e5
{[%clk 00:05:53]} {[%emt 00:02:49]} 49. dxe5 {[%clk 00:06:50]} {[%emt
00:00:07]} Bxe5 {[%clk 00:06:20]} {[%emt 00:00:03]} 50. Rb4 {[%clk 00:06:38]}
{[%emt 00:00:42]} Bd6 {[%emt 00:02:01]} 51. Rxc4 {[%clk 00:06:47]} dxc4+ {[%clk
00:05:34]} {[%emt 00:00:05]} 52. Ke4 {[%clk 00:06:23]} {[%emt 00:00:55]} a5
{[%clk 00:02:04]} {[%emt 00:04:00]} 53. Kd4 {[%clk 00:03:12]} {[%emt 00:03:40]}
Kc6 {[%clk 00:01:43]} {[%emt 00:00:52]} 54. Bc1 {[%clk 00:03:02]} {[%emt
00:00:41]} Re8 {[%clk 00:02:07]} {[%emt 00:00:05]} 55. a4 {[%clk 00:02:43]}
{[%emt 00:00:50]} Bc5# {[%clk 00:02:31]} {[%emt 00:00:05]} 0-1

[Event "NJSK 2026 Jeugd C"]
[Site "Helmond, Netherlands"]
[Date "2026.04.26"]
[Round "2.4"]
[White "Guillaumond, Matthieu"]
[Black "Uitermark, Imre"]
[Result "1-0"]
[TimeControl "90min/40moves + 30sec/move"]
[WhiteTitle "-"]
[BlackTitle "-"]
[WhiteFideId "1097091"]
[BlackFideId "40105199"]
[WhiteElo "2104"]
[BlackElo "1957"]

1. e4 {[%clk 01:30:59]} c5 {[%clk 01:30:57]} {[%emt 00:00:02]} 2. Nf3 {[%clk
01:31:25]} {[%emt 00:00:04]} Nc6 {[%clk 01:31:24]} {[%emt 00:00:04]} 3. d4
{[%clk 01:31:50]} {[%emt 00:00:04]} cxd4 {[%clk 01:31:50]} {[%emt 00:00:03]} 4.
Nxd4 {[%clk 01:32:17]} {[%emt 00:00:02]} Nf6 {[%clk 01:32:15]} {[%emt
00:00:05]} 5. Nc3 {[%clk 01:32:33]} {[%emt 00:00:14]} e5 {[%clk 01:32:41]}
{[%emt 00:00:04]} 6. Ndb5 {[%clk 01:32:54]} {[%emt 00:00:09]} d6 {[%clk
01:33:07]} {[%emt 00:00:05]} 7. Nd5 {[%clk 01:33:18]} {[%emt 00:00:06]} Nxd5
{[%clk 01:33:33]} {[%emt 00:00:04]} 8. exd5 {[%clk 01:33:45]} {[%emt 00:00:03]}
Ne7 {[%clk 01:33:58]} {[%emt 00:00:05]} 9. c4 {[%clk 01:32:11]} {[%emt
00:02:03]} Ng6 {[%clk 01:34:26]} {[%emt 00:00:03]} 10. Bd3 {[%clk 01:28:21]}
{[%emt 00:04:19]} a6 {[%clk 01:32:16]} {[%emt 00:02:40]} 11. Nc3 {[%clk
01:27:44]} {[%emt 00:01:07]} Be7 {[%clk 01:30:21]} {[%emt 00:02:25]} 12. a4
{[%clk 01:23:29]} {[%emt 00:04:44]} O-O {[%clk 01:30:18]} {[%emt 00:00:34]} 13.
a5 {[%clk 01:22:06]} {[%emt 00:01:54]} Bg5 {[%clk 01:29:39]} {[%emt 00:01:07]}
14. b4 {[%clk 00:59:32]} {[%emt 00:23:04]} f5 {[%clk 01:28:22]} {[%emt
00:01:47]} 15. h4 {[%clk 00:52:39]} {[%emt 00:07:23]} Bxc1 {[%clk 01:23:50]}
{[%emt 00:05:03]} 16. Rxc1 {[%clk 00:52:59]} {[%emt 00:00:09]} e4 {[%clk
01:23:32]} {[%emt 00:00:48]} 17. h5 {[%clk 00:49:55]} {[%emt 00:03:35]} Ne5
{[%clk 01:21:18]} {[%emt 00:02:43]} 18. Be2 {[%clk 00:48:58]} {[%emt 00:01:28]}
Qg5 {[%clk 01:18:52]} {[%emt 00:02:54]} 19. Kf1 {[%clk 00:46:18]} {[%emt
00:03:11]} Bd7 {[%clk 00:42:09]} {[%emt 00:37:13]} 20. c5 {[%clk 00:32:05]}
{[%emt 00:14:44]} Rae8 {[%clk 00:41:43]} {[%emt 00:00:56]} 21. Rh3 {[%clk
00:28:23]} {[%emt 00:04:12]} Ng4 {[%clk 00:40:18]} {[%emt 00:01:55]} 22. c6
{[%clk 00:16:36]} {[%emt 00:12:17]} Qf4 {[%clk 00:35:01]} {[%emt 00:05:47]} 23.
Qe1 {[%clk 00:15:31]} {[%emt 00:01:35]} Nxf2 {[%clk 00:27:41]} {[%emt
00:07:50]} 24. g3 {[%clk 00:15:59]} {[%emt 00:00:01]} Qe3 {[%clk 00:28:06]}
{[%emt 00:00:06]} 25. Rh4 {[%clk 00:16:25]} {[%emt 00:00:05]} Bc8 {[%clk
00:11:03]} {[%emt 00:17:32]} 26. Bxa6 {[%clk 00:11:28]} {[%emt 00:05:27]} f4
{[%clk 00:09:00]} {[%emt 00:02:33]} 27. cxb7 {[%clk 00:06:15]} {[%emt
00:05:43]} Bh3+ {[%clk 00:07:09]} {[%emt 00:02:22]} 28. Rxh3 {[%clk 00:06:42]}
{[%emt 00:00:02]} Qxe1+ {[%clk 00:07:23]} {[%emt 00:00:15]} 29. Rxe1 {[%clk
00:05:00]} {[%emt 00:02:12]} Nxh3 {[%clk 00:07:49]} {[%emt 00:00:04]} 30. Rxe4
{[%clk 00:05:24]} {[%emt 00:00:07]} Rxe4 {[%clk 00:02:50]} 31. Nxe4 {[%clk
00:05:53]} {[%emt 00:05:30]} fxg3+ {[%clk 00:03:08]} {[%emt 00:00:12]} 32. Kg2
{[%clk 00:05:59]} {[%emt 00:00:23]} Nf4+ {[%clk 00:02:58]} {[%emt 00:00:41]} 33.
Kxg3 {[%clk 00:06:28]} {[%emt 00:00:01]} Nxd5 {[%clk 00:02:43]} {[%emt
00:00:46]} 34. Bc4 {[%clk 00:06:49]} {[%emt 00:00:08]} 1-0

[Event "NJSK 2026 Jeugd C"]
[Site "Helmond, Netherlands"]
[Date "2026.04.26"]
[Round "2.5"]
[White "Ngangbam, Chingthang"]
[Black "Pathak, Raghav"]
[Result "0-1"]
[TimeControl "90min/40moves + 30sec/move"]
[WhiteTitle "-"]
[BlackTitle "-"]
[WhiteFideId "1086510"]
[BlackFideId "1084259"]
[WhiteElo "1937"]
[BlackElo "2091"]

1. e4 {[%clk 01:30:55]} {[%emt 00:00:02]} e5 {[%clk 01:30:45]} {[%emt
00:00:16]} 2. Nf3 {[%clk 01:31:15]} {[%emt 00:00:10]} Nc6 {[%clk 01:31:09]}
{[%emt 00:00:07]} 3. Bc4 {[%clk 01:31:37]} {[%emt 00:00:08]} Nf6 {[%clk
01:31:17]} {[%emt 00:00:22]} 4. d4 {[%clk 01:31:24]} {[%emt 00:00:43]} Nxe4
{[%clk 01:22:59]} {[%emt 00:08:48]} 5. dxe5 {[%clk 01:27:33]} {[%emt 00:04:21]}
Nc5 {[%clk 01:21:25]} {[%emt 00:02:04]} 6. O-O {[%clk 01:25:28]} {[%emt
00:02:35]} Be7 {[%clk 01:21:26]} {[%emt 00:00:29]} 7. Nc3 {[%clk 01:16:16]}
{[%emt 00:09:41]} d6 {[%clk 01:18:39]} {[%emt 00:03:17]} 8. Re1 {[%clk
01:11:41]} {[%emt 00:05:05]} O-O {[%clk 01:16:39]} {[%emt 00:02:29]} 9. Nd5
{[%clk 01:08:06]} {[%emt 00:04:05]} dxe5 {[%clk 01:12:23]} {[%emt 00:04:47]} 10.
Nxe5 {[%clk 01:07:30]} {[%emt 00:01:06]} Nxe5 {[%clk 01:12:37]} {[%emt
00:00:16]} 11. Rxe5 {[%clk 01:07:45]} {[%emt 00:00:14]} Bd6 {[%clk 01:12:57]}
{[%emt 00:00:11]} 12. Rh5 {[%clk 01:00:30]} {[%emt 00:07:45]} Be6 {[%clk
01:03:58]} {[%emt 00:09:29]} 13. Bg5 {[%clk 00:35:49]} {[%emt 00:25:10]} f6
{[%clk 01:04:05]} {[%emt 00:00:24]} 14. Be3 {[%clk 00:32:55]} {[%emt 00:03:23]}
c6 {[%clk 00:59:33]} {[%emt 00:05:02]} 15. Nb6 {[%clk 00:09:35]} {[%emt
00:23:50]} axb6 {[%emt 00:03:04]} 16. Bxc5 {[%clk 00:09:51]} {[%emt 00:00:13]}
Bxc4 {[%clk 00:56:38]} {[%emt 00:00:53]} 17. Bxd6 {[%clk 00:10:15]} {[%emt
00:00:06]} Be2 {[%clk 00:54:35]} {[%emt 00:02:32]} 18. Qxe2 {[%clk 00:10:33]}
{[%emt 00:00:12]} Qxd6 {[%clk 00:55:01]} {[%emt 00:00:04]} 19. Rd1 {[%clk
00:10:19]} {[%emt 00:00:43]} Rfe8 {[%clk 00:52:54]} {[%emt 00:02:38]} 20. Qc4+
{[%clk 00:10:31]} {[%emt 00:00:19]} Qe6 {[%clk 00:53:21]} {[%emt 00:00:03]} 21.
Qxe6+ {[%clk 00:06:26]} {[%emt 00:04:35]} Rxe6 {[%clk 00:53:47]} {[%emt
00:00:04]} 22. g3 {[%clk 00:06:49]} {[%emt 00:00:06]} Re2 {[%clk 00:52:40]}
{[%emt 00:01:37]} 23. Rd7 {[%clk 00:06:41]} {[%emt 00:00:38]} Rxc2 {[%clk
00:52:15]} {[%emt 00:00:54]} 24. b4 {[%clk 00:06:21]} {[%emt 00:00:50]} Raxa2
{[%clk 00:49:45]} {[%emt 00:03:01]} 25. Rf5 {[%clk 00:06:34]} {[%emt 00:00:16]}
Ra7 {[%clk 00:33:58]} {[%emt 00:16:18]} 26. Rc7 {[%clk 00:03:23]} {[%emt
00:03:40]} Re2 {[%clk 00:34:02]} {[%emt 00:00:26]} 27. Rf4 {[%clk 00:02:51]}
{[%emt 00:01:02]} Kf8 {[%clk 00:34:06]} {[%emt 00:00:27]} 28. Rg4 {[%clk
00:02:07]} {[%emt 00:01:14]} Re7 {[%clk 00:30:15]} {[%emt 00:04:21]} 29. Rxe7
{[%clk 00:02:30]} {[%emt 00:00:07]} Kxe7 {[%clk 00:30:43]} {[%emt 00:00:02]} 30.
Rxg7+ {[%clk 00:02:54]} {[%emt 00:00:06]} Kd6 {[%clk 00:31:09]} {[%emt
00:00:04]} 31. Rxh7 {[%clk 00:03:08]} {[%emt 00:00:16]} c5 {[%clk 00:31:27]}
{[%emt 00:00:12]} 32. b5 {[%clk 00:02:55]} {[%emt 00:00:44]} c4 {[%clk
00:31:33]} {[%emt 00:00:24]} 33. Rh8 {[%clk 00:02:20]} {[%emt 00:01:04]} Kc5
{[%clk 00:31:42]} {[%emt 00:00:21]} 34. Rc8+ {[%clk 00:02:36]} {[%emt
00:00:14]} Kb4 {[%clk 00:31:29]} {[%emt 00:00:43]} 35. h4 {[%clk 00:02:37]}
{[%emt 00:00:29]} Ra5 {[%clk 00:31:23]} {[%emt 00:00:36]} 36. g4 {[%clk
00:02:47]} {[%emt 00:00:20]} Rxb5 {[%clk 00:31:45]} {[%emt 00:00:08]} 37. h5
{[%clk 00:03:07]} {[%emt 00:00:10]} Rg5 {[%clk 00:32:02]} {[%emt 00:00:13]} 38.
f3 {[%clk 00:03:25]} {[%emt 00:00:11]} Rg7 {[%clk 00:32:00]} {[%emt 00:00:32]}
39. Kf2 {[%clk 00:03:49]} {[%emt 00:00:07]} Kb3 {[%clk 00:32:10]} {[%emt
00:00:20]} 40. Ke2 {[%clk 00:02:58]} {[%emt 00:01:21]} b5 {[%clk 00:31:34]}
{[%emt 00:01:06]} 41. Kd2 {[%clk 00:02:37]} {[%emt 00:00:50]} b4 {[%clk
00:31:29]} {[%emt 00:00:35]} 42. Rc5 {[%clk 00:02:00]} {[%emt 00:01:07]} c3+
{[%clk 00:31:38]} {[%emt 00:00:22]} 43. Kc1 {[%clk 00:00:35]} {[%emt 00:01:54]}
Re7 {[%clk 00:31:58]} {[%emt 00:00:10]} 44. Kd1 {[%clk 00:00:59]} {[%emt
00:00:06]} Kb2 {[%clk 00:32:23]} {[%emt 00:00:05]} 45. h6 {[%clk 00:00:59]}
{[%emt 00:00:31]} b3 {[%clk 00:32:42]} {[%emt 00:00:11]} 46. f4 {[%clk
00:00:54]} {[%emt 00:00:34]} c2+ {[%clk 00:33:07]} {[%emt 00:00:05]} 47. Kd2
{[%clk 00:01:18]} {[%emt 00:00:06]} Rd7 {[%clk 00:33:33]} {[%emt 00:00:04]} 48.
Ke3 {[%clk 00:01:31]} {[%emt 00:00:16]} c1=Q+ {[%clk 00:33:52]} {[%emt
00:00:13]} 0-1

[Event "NJSK 2026 Jeugd C"]
[Site "Helmond, Netherlands"]
[Date "2026.04.26"]
[Round "2.6"]
[White "Koppenens, Oscar"]
[Black "Brorens, Victor"]
[Result "1-0"]
[TimeControl "90min/40moves + 30sec/move"]
[WhiteTitle "-"]
[BlackTitle "-"]
[WhiteFideId "1087940"]
[BlackFideId "1095307"]
[WhiteElo "2036"]
[BlackElo "1911"]

1. e4 {[%clk 01:30:57]} {[%emt 00:00:03]} e6 {[%clk 01:30:58]} {[%emt
00:00:01]} 2. d4 {[%clk 01:31:08]} {[%emt 00:00:19]} d5 {[%clk 01:31:27]}
{[%emt 00:00:01]} 3. Nd2 {[%clk 01:31:22]} {[%emt 00:00:16]} c5 {[%clk
01:31:50]} {[%emt 00:00:07]} 4. Ngf3 {[%clk 01:31:48]} {[%emt 00:00:04]} cxd4
{[%clk 01:32:12]} {[%emt 00:00:09]} 5. Nxd4 {[%clk 01:32:12]} {[%emt 00:00:06]}
Nc6 {[%clk 01:32:39]} {[%emt 00:00:03]} 6. Bb5 {[%clk 01:32:22]} {[%emt
00:00:19]} Qb6 {[%clk 01:32:31]} {[%emt 00:00:38]} 7. exd5 {[%clk 01:17:22]}
{[%emt 00:15:29]} exd5 {[%clk 01:29:32]} {[%emt 00:03:30]} 8. Qe2+ {[%clk
01:17:30]} {[%emt 00:00:22]} Nge7 {[%clk 01:26:44]} {[%emt 00:03:18]} 9. N2f3
{[%clk 01:17:09]} {[%emt 00:00:50]} Bd7 {[%clk 01:25:17]} {[%emt 00:01:58]} 10.
Be3 {[%clk 01:15:56]} {[%emt 00:01:43]} Qa5+ {[%clk 01:23:50]} {[%emt
00:01:57]} 11. c3 {[%clk 01:11:38]} {[%emt 00:04:48]} O-O-O {[%clk 01:20:22]}
{[%emt 00:03:58]} 12. b4 {[%clk 01:06:22]} {[%emt 00:05:46]} Qa3 {[%clk
01:18:38]} {[%emt 00:02:08]} 13. O-O {[%clk 01:06:41]} {[%emt 00:00:17]} h6
{[%clk 01:12:32]} {[%emt 00:06:35]} 14. Rab1 {[%clk 01:03:06]} {[%emt
00:04:06]} g5 {[%clk 01:12:01]} {[%emt 00:01:01]} 15. Rb3 {[%clk 01:02:58]}
{[%emt 00:00:38]} Nxd4 {[%clk 01:10:43]} {[%emt 00:01:47]} 16. Nxd4 {[%clk
01:02:54]} {[%emt 00:00:34]} Bxb5 {[%clk 01:10:53]} {[%emt 00:00:21]} 17. Nxb5
{[%clk 01:03:18]} {[%emt 00:00:06]} Qa6 {[%clk 01:11:04]} {[%emt 00:00:19]} 18.
Ra3 {[%clk 01:03:39]} {[%emt 00:00:08]} Qg6 {[%clk 01:11:17]} {[%emt 00:00:18]}
19. Bd4 {[%clk 01:03:03]} {[%emt 00:01:05]} f6 {[%clk 01:10:16]} {[%emt
00:01:32]} 20. Qe6+ {[%clk 01:03:20]} {[%emt 00:00:12]} Rd7 {[%clk 01:09:45]}
{[%emt 00:01:02]} 21. Nxa7+ {[%clk 01:02:51]} {[%emt 00:00:59]} Kd8 {[%clk
01:09:51]} {[%emt 00:00:25]} 22. Bb6+ {[%clk 01:03:11]} {[%emt 00:00:09]} Ke8
{[%clk 01:10:11]} {[%emt 00:00:10]} 23. Nb5 {[%clk 01:03:24]} {[%emt 00:00:16]}
1-0

[Event "NJSK 2026 Jeugd C"]
[Site "Helmond, Netherlands"]
[Date "2026.04.26"]
[Round "2.7"]
[White "Sosef, Noah"]
[Black "Tkacenko, Kostia"]
[Result "1-0"]
[TimeControl "90min/40moves + 30sec/move"]
[WhiteTitle "-"]
[BlackTitle "-"]
[WhiteFideId "40107060"]
[BlackFideId "40120708"]
[WhiteElo "2012"]
[BlackElo "1552"]

1. e4 {[%clk 01:30:58]} e6 {[%clk 01:30:54]} {[%emt 00:00:06]} 2. d4 {[%clk
01:31:19]} {[%emt 00:00:08]} d5 {[%clk 01:31:16]} {[%emt 00:00:09]} 3. Nc3
{[%clk 01:31:45]} {[%emt 00:00:04]} Bb4 {[%clk 01:31:28]} {[%emt 00:00:18]} 4.
e5 {[%emt 00:01:29]} c5 {[%clk 01:30:34]} 5. Bd2 {[%clk 01:32:06]} {[%emt
00:00:34]} cxd4 {[%clk 01:30:35]} {[%emt 00:00:29]} 6. Nb5 {[%clk 01:32:17]}
{[%emt 00:00:19]} Bc5 {[%clk 01:29:00]} {[%emt 00:02:04]} 7. b4 {[%clk
01:13:27]} {[%emt 00:19:22]} Be7 {[%clk 01:26:49]} {[%emt 00:02:40]} 8. Nxd4
{[%clk 01:11:26]} {[%emt 00:02:30]} Nc6 {[%clk 01:25:21]} {[%emt 00:01:58]} 9.
Nxc6 {[%clk 01:05:08]} {[%emt 00:06:48]} bxc6 {[%clk 01:25:43]} {[%emt
00:00:09]} 10. Nf3 {[%clk 01:03:14]} {[%emt 00:02:24]} Qb6 {[%clk 01:18:03]}
{[%emt 00:08:10]} 11. a3 {[%clk 01:00:56]} {[%emt 00:02:48]} c5 {[%clk
01:16:09]} {[%emt 00:02:23]} 12. Rb1 {[%clk 00:47:36]} {[%emt 00:13:50]} Rb8
{[%clk 01:10:36]} {[%emt 00:06:04]} 13. b5 {[%clk 00:46:22]} {[%emt 00:01:44]}
a5 {[%clk 01:04:44]} {[%emt 00:06:21]} 14. c3 {[%clk 00:41:37]} {[%emt
00:05:16]} Bd8 {[%clk 00:58:46]} {[%emt 00:06:27]} 15. Qa4 {[%clk 00:39:36]}
{[%emt 00:02:32]} Ne7 {[%clk 00:51:23]} {[%emt 00:07:53]} 16. Bd3 {[%clk
00:36:11]} {[%emt 00:03:54]} Ng6 {[%clk 00:49:01]} {[%emt 00:02:52]} 17. O-O
{[%clk 00:34:19]} {[%emt 00:02:23]} Bb7 {[%clk 00:45:14]} {[%emt 00:04:16]} 18.
Be3 {[%clk 00:23:41]} {[%emt 00:11:08]} Be7 {[%clk 00:41:30]} {[%emt 00:04:14]}
19. Rfc1 {[%clk 00:12:27]} {[%emt 00:11:43]} O-O {[%clk 00:31:59]} {[%emt
00:10:01]} 20. Qg4 {[%clk 00:12:09]} {[%emt 00:00:47]} d4 {[%clk 00:28:52]}
{[%emt 00:03:38]} 21. cxd4 {[%clk 00:11:10]} {[%emt 00:01:30]} Bxf3 {[%clk
00:29:01]} {[%emt 00:00:21]} 22. gxf3 {[%clk 00:10:47]} {[%emt 00:00:52]} Rfc8
{[%clk 00:27:52]} {[%emt 00:01:39]} 23. a4 {[%clk 00:07:51]} {[%emt 00:03:25]}
Rc7 {[%clk 00:25:37]} {[%emt 00:02:46]} 24. Rc4 {[%clk 00:04:46]} {[%emt
00:03:35]} cxd4 {[%clk 00:22:05]} {[%emt 00:04:01]} 25. Qxd4 {[%clk 00:04:23]}
{[%emt 00:00:54]} Qxd4 {[%clk 00:19:42]} {[%emt 00:02:53]} 26. Bxd4 {[%clk
00:04:47]} {[%emt 00:00:06]} Rd7 {[%clk 00:19:23]} {[%emt 00:00:48]} 27. Bxg6
{[%clk 00:01:47]} {[%emt 00:03:30]} hxg6 {[%clk 00:19:38]} {[%emt 00:00:16]} 28.
Rbc1 {[%clk 00:01:49]} {[%emt 00:00:28]} Rbd8 {[%clk 00:18:03]} {[%emt
00:02:05]} 29. Bb6 {[%clk 00:01:13]} {[%emt 00:01:05]} Rd1+ {[%clk 00:18:25]}
{[%emt 00:00:09]} 30. Kg2 {[%clk 00:01:35]} {[%emt 00:00:09]} Rxc1 {[%clk
00:18:14]} {[%emt 00:00:41]} 31. Rxc1 {[%clk 00:02:03]} {[%emt 00:00:01]} Rd5
{[%clk 00:17:57]} {[%emt 00:00:46]} 32. Bxa5 {[%clk 00:01:18]} {[%emt
00:01:16]} Rxe5 {[%clk 00:18:15]} {[%emt 00:00:12]} 33. Bc7 {[%clk 00:01:36]}
{[%emt 00:00:13]} Rd5 {[%clk 00:16:30]} {[%emt 00:02:14]} 34. b6 {[%clk
00:01:48]} {[%emt 00:00:18]} Bc5 {[%clk 00:14:39]} {[%emt 00:02:21]} 35. Rxc5
{[%clk 00:01:55]} {[%emt 00:00:23]} 1-0